[Event "FIDE World Junior U20-ch Girls 2025"]
[Site "Petrovac"]
[Date "2025.02.28"]
[Round "3.9"]
[White "Song, Yuxin"]
[Black "Zhapova, Yana"]
[Result "1/2-1/2"]
[Annotator "ChessBase"]
[ECO "A22"]
[WhiteElo "2381"]
[BlackElo "2234"]
[PlyCount "111"]
[EventDate "2025.02.23"]
[EventType "swiss"]
[EventCountry "MNE"]
[SourceTitle "playchess.com"]
[Source "ChessBase"]
[SourceQuality "1"]
[TimeControl "40/5400+30:1800+30"]

1. c4 {[%emt 0:00:03]} e5 {[%emt 0:00:31]} 2. Nc3 {[%emt 0:00:08]} Nf6 {[%emt 0:00:12]} 3. e3 {[%emt 0:00:07]} d5 {[%emt 0:06:18]} 4. cxd5 {[%emt 0:00:06]} Nxd5 {[%emt 0:00:06]} 5. Nf3 {[%emt 0:00:07]} Nxc3 {[%emt 0:03:35]} 6. bxc3 {[%emt 0:00:05]} Nc6 {[%emt 0:00:15]} 7. Bb5 {[%emt 0:00:10]} Bd6 {[%emt 0:00:12]} 8. d4 {[%emt 0:00:07]} Bd7 {[%emt 0:01:21]} 9. O-O {[%emt 0:00:36]} O-O {[%emt 0:07:36]} 10. Bxc6 {[%emt 0:05:29]} Bxc6 {[%emt 0:03:53]} 11. dxe5 {[%emt 0:00:06]} Bxf3 {[%emt 0:00:42]} 12. Qxf3 {[%emt 0:00:07]} Bxe5 {[%emt 0:00:06]} 13. Ba3 {[%emt 0:00:05]} Re8 {[%emt 0:00:25]} 14. Qxb7 {[%emt 0:02:02]} Bxc3 {[%emt 0:05:33]} 15. Rad1 {[%emt 0:04:23]} Qh4 {[%emt 0:06:37]} 16. Qc6 {[%emt 0:23:51]} Be5 {[%emt 0:07:42]} 17. f4 {[%emt 0:05:40]} Qf6 {[%emt 0:00:59]} 18. Qxf6 {[%emt 0:00:26]} Bxf6 {[%emt 0:00:05]} 19. Rd3 {[%emt 0:00:05]} Rad8 {[%emt 0:14:30]} 20. Rfd1 {[%emt 0:02:02]} g6 {[%emt 0:09:53]} 21. Kf2 {[%emt 0:09:30]} Rxd3 {[%emt 0:03:14]} 22. Rxd3 {[%emt 0:00:02]} Re4 {[%emt 0:00:25]} 23. Rb3 {[%emt 0:03:02]} h5 {[%emt 0:04:05]} 24. Rb8+ {[%emt 0:06:29]} Kh7 {[%emt 0:00:30]} 25. Rb4 {[%emt 0:02:56]} Re6 {[%emt 0:02:29]} 26. Ra4 {[%emt 0:00:11]} Rc6 {[%emt 0:00:49]} 27. Kf3 {[%emt 0:00:37]} Rc2 {[%emt 0:01:50]} 28. Rxa7 {[%emt 0:05:32]} Rxa2 {[%emt 0:00:14]} 29. Bc5 {[%emt 0:00:15]} Rxa7 {[%emt 0:01:18]} 30. Bxa7 {[%emt 0:00:03]} Be7 {[%emt 0:13:41]} 31. Ke4 {[%emt 0:01:55]} f5+ {[%emt 0:02:03]} 32. Kd5 {[%emt 0:00:41]} c6+ {[%emt 0:01:37]} 33. Kxc6 {[%emt 0:01:51]} Kg8 {[%emt 0:00:07]} 34. Bc5 {[%emt 0:05:05]} Bf6 {[%emt 0:00:10]} 35. Bd4 {[%emt 0:01:05]} Be7 {[%emt 0:00:05]} 36. Kd5 {[%emt 0:00:53]} Kf7 {[%emt 0:00:04]} 37. h3 {[%emt 0:00:25]} Bd8 {[%emt 0:00:58]} 38. Be5 {[%emt 0:01:46]} Be7 {[%emt 0:00:31]} 39. Bc3 {[%emt 0:00:36]} Bd8 {[%emt 0:00:09]} 40. Be1 {[%emt 0:00:29]} Bb6 {[%emt 0:01:18]} 41. Bf2 {[%emt 0:30:23]} Bd8 {[%emt 0:04:50]} 42. g4 {[%emt 0:00:00]} hxg4 {[%emt 0:00:08]} 43. hxg4 {[%emt 0:00:00]} Ba5 {[%emt 0:00:57]} 44. e4 {[%emt 0:00:00]} fxe4 {[%emt 0:00:20]} 45. Kxe4 {[%emt 0:00:00]} Bb4 {[%emt 0:00:12]} 46. f5 {[%emt 0:00:00]} gxf5+ {[%emt 0:00:06]} 47. Kxf5 {[%emt 0:00:00]} Bd2 {[%emt 0:00:08]} 48. Bh4 {[%emt 0:00:00]} Bc1 {[%emt 0:00:13]} 49. Bf6 {[%emt 0:00:00]} Bd2 {[%emt 0:00:11]} 50. Bg5 {[%emt 0:00:00]} Bc3 {[%emt 0:00:07]} 51. Bh6 {[%emt 0:00:00]} Bb2 {[%emt 0:00:11]} 52. g5 {[%emt 0:00:00]} Bd4 {[%emt 0:00:13]} 53. g6+ {[%emt 0:00:00]} Kg8 {[%emt 0:00:04]} 54. Bg5 {[%emt 0:00:00]} Bc5 {[%emt 0:00:06]} 55. Bf6 {[%emt 0:00:00]} Bb6 {[%emt 0:00:04]} 56. Ke4 {[%emt 0:00:00]} 1/2-1/2

[Event "FIDE World Junior U20-ch Girls 2025"]
[Site "Petrovac"]
[Date "2025.02.28"]
[Round "3.10"]
[White "Kirtadze, Anastasia"]
[Black "Rakshitta Ravi"]
[Result "1-0"]
[Annotator "ChessBase"]
[ECO "C45"]
[WhiteElo "2218"]
[BlackElo "2365"]
[PlyCount "89"]
[EventDate "2025.02.23"]
[EventType "swiss"]
[EventCountry "MNE"]
[SourceTitle "playchess.com"]
[Source "ChessBase"]
[SourceQuality "1"]
[TimeControl "40/5400+30:1800+30"]

1. e4 {[%emt 0:00:01]} e5 {[%emt 0:00:18]} 2. Nf3 {[%emt 0:00:30]} Nc6 {[%emt 0:00:05]} 3. d4 {[%emt 0:00:07]} exd4 {[%emt 0:00:05]} 4. Nxd4 {[%emt 0:00:05]} Nf6 {[%emt 0:00:03]} 5. Nxc6 {[%emt 0:00:53]} bxc6 {[%emt 0:00:05]} 6. e5 {[%emt 0:00:07]} Qe7 {[%emt 0:00:03]} 7. Qe2 {[%emt 0:00:12]} Nd5 {[%emt 0:00:05]} 8. h4 {[%emt 0:02:29]} g6 {[%emt 0:00:28]} 9. c4 {[%emt 0:14:40]} Qb4+ {[%emt 0:10:02]} 10. Nd2 {[%emt 0:10:48]} Nf4 {[%emt 0:05:24]} 11. Qe4 {[%emt 0:06:29]} Ne6 {[%emt 0:00:10]} 12. a3 {[%emt 0:01:31]} Qa5 {[%emt 0:01:37]} 13. h5 {[%emt 0:09:08]} Bg7 {[%emt 0:07:48]} 14. h6 {[%emt 0:06:10]} Bf8 {[%emt 0:09:34]} 15. Rb1 {[%emt 0:05:04]} Rb8 {[%emt 0:08:55]} 16. b4 {[%emt 0:00:53]} Qa4 {[%emt 0:00:19]} 17. Bd3 {[%emt 0:06:28]} c5 {[%emt 0:01:10]} 18. b5 {[%emt 0:03:16]} Bb7 {[%emt 0:03:55]} 19. Qg4 {[%emt 0:00:52]} Qa5 {[%emt 0:05:09]} 20. Be4 {[%emt 0:11:39]} Bxe4 {[%emt 0:07:38]} 21. Qxe4 {[%emt 0:00:06]} Nd4 {[%emt 0:00:14]} 22. Bb2 {[%emt 0:08:32]} Nb3 {[%emt 0:10:17]} 23. Rd1 {[%emt 0:02:15]} Rg8 {[%emt 0:11:46]} 24. Qd3 {[%emt 0:05:45]} Nxd2 {[%emt 0:00:04]} 25. Rxd2 {[%emt 0:00:01]} Rd8 {[%emt 0:00:05]} 26. f4 {[%emt 0:01:39]} Qb6 {[%emt 0:02:41]} 27. g4 {[%emt 0:00:53]} Qe6 {[%emt 0:06:43]} 28. f5 {[%emt 0:01:44]} gxf5 {[%emt 0:00:05]} 29. gxf5 {[%emt 0:00:06]} Qe7 {[%emt 0:00:02]} 30. Kd1 {[%emt 0:01:37]} Qg5 {[%emt 0:00:45]} 31. Rdh2 {[%emt 0:01:25]} Qg4+ {[%emt 0:03:58]} 32. Kc2 {[%emt 0:00:29]} Rg5 {[%emt 0:00:06]} 33. Rf2 {[%emt 0:00:30]} d5 {[%emt 0:01:34]} 34. exd6 {[%emt 0:00:28]} Rxd6 {[%emt 0:00:21]} 35. Re1+ {[%emt 0:00:34]} Kd7 {[%emt 0:00:06]} 36. Qe3 {[%emt 0:00:32]} Qxc4+ {[%emt 0:00:48]} 37. Bc3 {[%emt 0:00:18]} Kc8 {[%emt 0:04:27]} 38. Qxg5 {[%emt 0:00:32]} Bxh6 {[%emt 0:02:02]} 39. Re8+ {[%emt 0:00:23]} Kb7 {[%emt 0:00:01]} 40. Qg2+ {[%emt 0:00:07]} c6 {[%emt 0:00:13]} 41. bxc6+ {[%emt 0:30:22]} Ka6 {[%emt 0:02:14]} 42. Qf1 {[%emt 0:00:00]} Rd2+ {[%emt 0:00:12]} 43. Rxd2 {[%emt 0:00:00]} Qxf1 {[%emt 0:00:09]} 44. c7 {[%emt 0:00:00]} Qxf5+ {[%emt 0:06:13]} 45. Kb2 {[%emt 0:00:00]} 1-0

[Event "FIDE World Junior U20-ch Girls 2025"]
[Site "Petrovac"]
[Date "2025.02.28"]
[Round "3.11"]
[White "Yakimova, Mariya"]
[Black "Khamdamova, Afruza"]
[Result "1-0"]
[Annotator "ChessBase"]
[ECO "D35"]
[WhiteElo "2201"]
[BlackElo "2354"]
[PlyCount "119"]
[EventDate "2025.02.23"]
[EventType "swiss"]
[EventCountry "MNE"]
[SourceTitle "playchess.com"]
[Source "ChessBase"]
[SourceQuality "1"]
[TimeControl "40/5400+30:1800+30"]

1. d4 {[%emt 0:00:11]} d5 {[%emt 0:00:12]} 2. c4 {[%emt 0:00:11]} e6 {[%emt 0:00:05]} 3. Nc3 {[%emt 0:00:14]} Nf6 {[%emt 0:00:09]} 4. cxd5 {[%emt 0:00:09]} exd5 {[%emt 0:00:06]} 5. Bg5 {[%emt 0:00:13]} c6 {[%emt 0:00:06]} 6. e3 {[%emt 0:00:26]} h6 {[%emt 0:00:07]} 7. Bh4 {[%emt 0:00:26]} Be7 {[%emt 0:00:07]} 8. Bd3 {[%emt 0:00:11]} O-O {[%emt 0:00:07]} 9. Nge2 {[%emt 0:01:03]} Re8 {[%emt 0:00:06]} 10. O-O {[%emt 0:00:14]} a5 {[%emt 0:00:04]} 11. Rc1 {[%emt 0:02:13]} Nbd7 {[%emt 0:00:18]} 12. h3 {[%emt 0:06:48]} b5 {[%emt 0:01:02]} 13. a4 {[%emt 0:00:27]} b4 {[%emt 0:00:16]} 14. Nb1 {[%emt 0:00:08]} Qb6 {[%emt 0:00:05]} 15. Nd2 {[%emt 0:00:56]} Ba6 {[%emt 0:00:45]} 16. Bxa6 {[%emt 0:00:08]} Qxa6 {[%emt 0:00:24]} 17. Bxf6 {[%emt 0:00:25]} Nxf6 {[%emt 0:02:35]} 18. Rc2 {[%emt 0:00:18]} Rac8 {[%emt 0:01:01]} 19. Nb3 {[%emt 0:08:37]} Ne4 {[%emt 0:01:07]} 20. Nf4 {[%emt 0:00:59]} Bd6 {[%emt 0:06:59]} 21. Nd3 {[%emt 0:01:09]} Qb6 {[%emt 0:01:16]} 22. Qg4 {[%emt 0:04:49]} Rf8 {[%emt 0:10:46]} 23. Qf5 {[%emt 0:13:38]} g6 {[%emt 0:04:01]} 24. Qf3 {[%emt 0:01:44]} Kg7 {[%emt 0:02:01]} 25. Rfc1 {[%emt 0:00:25]} Rfe8 {[%emt 0:03:11]} 26. Qg4 {[%emt 0:05:06]} Rc7 {[%emt 0:09:47]} 27. Qd1 {[%emt 0:06:32]} h5 {[%emt 0:01:25]} 28. Re2 {[%emt 0:05:47]} Rcc8 {[%emt 0:08:56]} 29. Ndc5 {[%emt 0:02:33]} f5 {[%emt 0:08:49]} 30. Nxe4 {[%emt 0:08:24]} fxe4 {[%emt 0:00:27]} 31. f4 {[%emt 0:01:10]} exf3 {[%emt 0:04:54]} 32. gxf3 {[%emt 0:00:05]} Qd8 {[%emt 0:00:52]} 33. Qf1 {[%emt 0:04:12]} Re6 {[%emt 0:10:16]} 34. Qg2 {[%emt 0:01:47]} Qe7 {[%emt 0:01:29]} 35. e4 {[%emt 0:00:48]} dxe4 {[%emt 0:06:56]} 36. fxe4 {[%emt 0:00:07]} Bf4 {[%emt 0:00:10]} 37. Rf1 {[%emt 0:09:03]} Rf6 {[%emt 0:00:17]} 38. Kh1 {[%emt 0:00:48]} Rcf8 {[%emt 0:00:52]} 39. Rg1 {[%emt 0:01:28]} g5 {[%emt 0:01:55]} 40. e5 {[%emt 0:01:34]} Rg6 {[%emt 0:00:31]} 41. Rf1 {[%emt 0:42:58]} g4 {[%emt 0:36:20]} 42. Ref2 {[%emt 0:00:00]} gxh3 {[%emt 0:00:00]} 43. Qxh3 {[%emt 0:00:00]} Rg4 {[%emt 0:00:00]} 44. Rg2 {[%emt 0:00:00]} Qg5 {[%emt 0:00:00]} 45. Rfg1 {[%emt 0:00:00]} Rh8 {[%emt 0:00:00]} 46. Nc5 {[%emt 0:00:00]} Rh6 {[%emt 0:00:00]} 47. Ne4 {[%emt 0:01:33]} Qg6 {[%emt 0:00:00]} 48. Nf2 {[%emt 0:01:37]} Kf8 {[%emt 0:00:38]} 49. Qf3 {[%emt 0:01:30]} Rh4+ {[%emt 0:11:23]} 50. Nh3 {[%emt 0:00:01]} Qe6 {[%emt 0:00:04]} 51. Rh2 {[%emt 0:00:29]} Rf6 {[%emt 0:02:18]} 52. exf6 {[%emt 0:00:31]} Bxh2 {[%emt 0:00:03]} 53. Kxh2 {[%emt 0:00:25]} Rxd4 {[%emt 0:00:12]} 54. Qg3 {[%emt 0:01:20]} Rd2+ {[%emt 0:01:06]} 55. Nf2 {[%emt 0:00:19]} Qd6 {[%emt 0:00:41]} 56. Qxd6+ {[%emt 0:00:15]} Rxd6 {[%emt 0:00:04]} 57. Ne4 {[%emt 0:00:06]} Re6 {[%emt 0:00:28]} 58. Ng5 {[%emt 0:00:50]} Re2+ {[%emt 0:00:47]} 59. Kh3 {[%emt 0:00:04]} Rf2 {[%emt 0:01:21]} 60. Rd1 {[%emt 0:00:35]} 1-0

[Event "FIDE World Junior U20-ch Girls 2025"]
[Site "Petrovac"]
[Date "2025.02.28"]
[Round "3.12"]
[White "Kurmangaliyeva, Liya"]
[Black "Sneha Halder"]
[Result "1-0"]
[Annotator "ChessBase"]
[ECO "C42"]
[WhiteElo "2251"]
[BlackElo "2065"]
[PlyCount "99"]
[EventDate "2025.02.23"]
[EventType "swiss"]
[EventCountry "MNE"]
[SourceTitle "playchess.com"]
[Source "ChessBase"]
[SourceQuality "1"]
[TimeControl "40/5400+30:1800+30"]

1. e4 {[%emt 0:00:15]} e5 {[%emt 0:00:49]} 2. Nf3 {[%emt 0:00:12]} Nf6 {[%emt 0:00:09]} 3. Nxe5 {[%emt 0:00:15]} d6 {[%emt 0:00:06]} 4. Nf3 {[%emt 0:00:14]} Nxe4 {[%emt 0:00:07]} 5. Nc3 {[%emt 0:00:16]} Nxc3 {[%emt 0:00:39]} 6. dxc3 {[%emt 0:00:09]} Be6 {[%emt 0:01:32]} 7. Be3 {[%emt 0:02:04]} Nc6 {[%emt 0:00:06]} 8. Bd3 {[%emt 0:02:04]} Be7 {[%emt 0:00:09]} 9. Qe2 {[%emt 0:01:16]} O-O {[%emt 0:07:35]} 10. O-O-O {[%emt 0:08:24]} a6 {[%emt 0:05:08]} 11. h4 {[%emt 0:03:06]} Qd7 {[%emt 0:04:02]} 12. Ng5 {[%emt 0:09:23]} Bf5 {[%emt 0:07:31]} 13. f3 {[%emt 0:26:55]} Ne5 {[%emt 0:16:57]} 14. Bxf5 {[%emt 0:01:44]} Qxf5 {[%emt 0:00:06]} 15. g4 {[%emt 0:01:17]} Qd7 {[%emt 0:00:07]} 16. Bd4 {[%emt 0:07:00]} Qb5 {[%emt 0:11:50]} 17. Qe4 {[%emt 0:01:42]} Ng6 {[%emt 0:11:50]} 18. f4 {[%emt 0:02:00]} Rfe8 {[%emt 0:07:04]} 19. Qf3 {[%emt 0:01:20]} Qc6 {[%emt 0:04:53]} 20. Qg3 {[%emt 0:01:36]} h6 {[%emt 0:00:27]} 21. Nf3 {[%emt 0:01:13]} Qe4 {[%emt 0:00:38]} 22. f5 {[%emt 0:05:56]} Qf4+ {[%emt 0:00:51]} 23. Qxf4 {[%emt 0:00:05]} Nxf4 {[%emt 0:00:01]} 24. Rde1 {[%emt 0:01:42]} c5 {[%emt 0:04:53]} 25. Bf2 {[%emt 0:00:33]} Bf8 {[%emt 0:00:04]} 26. g5 {[%emt 0:02:03]} d5 {[%emt 0:03:06]} 27. Kd1 {[%emt 0:03:50]} Re4 {[%emt 0:09:11]} 28. Rxe4 {[%emt 0:02:55]} dxe4 {[%emt 0:00:02]} 29. Nd2 {[%emt 0:00:05]} Re8 {[%emt 0:00:38]} 30. Be3 {[%emt 0:09:46]} Nd5 {[%emt 0:01:20]} 31. Ke2 {[%emt 0:00:55]} Bd6 {[%emt 0:00:50]} 32. Rf1 {[%emt 0:01:31]} hxg5 {[%emt 0:00:01]} 33. hxg5 {[%emt 0:00:16]} b5 {[%emt 0:00:01]} 34. c4 {[%emt 0:02:12]} Nb4 {[%emt 0:00:30]} 35. c3 {[%emt 0:00:25]} Nd3 {[%emt 0:01:28]} 36. b3 {[%emt 0:00:11]} bxc4 {[%emt 0:01:32]} 37. Nxc4 {[%emt 0:01:04]} Bc7 {[%emt 0:00:01]} 38. Nd2 {[%emt 0:01:04]} Ne5 {[%emt 0:02:00]} 39. Bxc5 {[%emt 0:00:42]} Bd8 {[%emt 0:00:37]} 40. Be3 {[%emt 0:01:12]} Ng4 {[%emt 0:00:31]} 41. Bf4 {[%emt 0:31:19]} Bb6 {[%emt 0:01:53]} 42. Nc4 {[%emt 0:00:00]} Bc5 {[%emt 0:04:14]} 43. b4 {[%emt 0:00:00]} Ba7 {[%emt 0:05:18]} 44. Nd6 {[%emt 0:00:00]} Rd8 {[%emt 0:00:40]} 45. c4 {[%emt 0:00:00]} f6 {[%emt 0:02:42]} 46. c5 {[%emt 0:00:00]} Bb8 {[%emt 0:01:02]} 47. Rg1 {[%emt 0:00:00]} Ne5 {[%emt 0:03:38]} 48. Bxe5 {[%emt 0:00:00]} fxe5 {[%emt 0:00:05]} 49. Rd1 {[%emt 0:00:00]} Rf8 {[%emt 0:03:55]} 50. Ke3 {[%emt 0:00:00]} 1-0

[Event "FIDE World Junior U20-ch Girls 2025"]
[Site "Petrovac"]
[Date "2025.02.28"]
[Round "3.13"]
[White "Mihelic, Vesna"]
[Black "Kaldarova, Ayaulym"]
[Result "0-1"]
[Annotator "ChessBase"]
[ECO "C01"]
[WhiteElo "2115"]
[BlackElo "2248"]
[PlyCount "42"]
[EventDate "2025.02.23"]
[EventType "swiss"]
[EventCountry "MNE"]
[SourceTitle "playchess.com"]
[Source "ChessBase"]
[SourceQuality "1"]
[TimeControl "40/5400+30:1800+30"]

1. e4 {[%emt 0:00:03]} e6 {[%emt 0:00:18]} 2. d4 {[%emt 0:00:07]} d5 {[%emt 0:00:10]} 3. exd5 {[%emt 0:00:07]} exd5 {[%emt 0:00:11]} 4. Nf3 {[%emt 0:00:14]} Nc6 {[%emt 0:00:34]} 5. h3 {[%emt 0:00:19]} h6 {[%emt 0:11:05]} 6. Bd3 {[%emt 0:11:07]} Nb4 {[%emt 0:05:59]} 7. O-O {[%emt 0:06:07]} Nxd3 {[%emt 0:01:19]} 8. Qxd3 {[%emt 0:00:09]} Bd6 {[%emt 0:00:46]} 9. c4 {[%emt 0:11:55]} dxc4 {[%emt 0:04:07]} 10. Qxc4 {[%emt 0:00:40]} Ne7 {[%emt 0:00:59]} 11. Nc3 {[%emt 0:04:08]} c6 {[%emt 0:03:18]} 12. Ne4 {[%emt 0:06:37]} Bc7 {[%emt 0:02:38]} 13. b3 {[%emt 0:03:27]} O-O {[%emt 0:05:38]} 14. Ba3 {[%emt 0:03:05]} Re8 {[%emt 0:01:20]} 15. Rfe1 {[%emt 0:05:59]} Be6 {[%emt 0:05:09]} 16. Qc5 {[%emt 0:04:35]} Bd5 {[%emt 0:08:07]} 17. Ne5 {[%emt 0:22:31]} Nf5 {[%emt 0:05:42]} 18. Bb2 {[%emt 0:12:23]} f6 {[%emt 0:05:55]} 19. f4 {[%emt 0:05:08]} fxe5 {[%emt 0:01:35]} 20. fxe5 {[%emt 0:00:02]} Bb6 {[%emt 0:00:24]} 21. Qb4 {[%emt 0:00:59]} Ba5 {[%emt 0:04:43]} 0-1

[Event "FIDE World Junior U20-ch Girls 2025"]
[Site "Petrovac"]
[Date "2025.02.28"]
[Round "3.14"]
[White "Kaliakhmet, Elnaz"]
[Black "Sulyok, Eszter"]
[Result "1-0"]
[Annotator "ChessBase"]
[ECO "D45"]
[WhiteElo "2242"]
[BlackElo "2109"]
[PlyCount "143"]
[EventDate "2025.02.23"]
[EventType "swiss"]
[EventCountry "MNE"]
[SourceTitle "playchess.com"]
[Source "ChessBase"]
[SourceQuality "1"]
[TimeControl "40/5400+30:1800+30"]

1. d4 {[%emt 0:00:02]} d5 {[%emt 0:00:06]} 2. c4 {[%emt 0:00:04]} e6 {[%emt 0:00:05]} 3. Nf3 {[%emt 0:00:03]} c6 {[%emt 0:00:13]} 4. Nc3 {[%emt 0:00:44]} Nf6 {[%emt 0:00:09]} 5. e3 {[%emt 0:00:04]} Nbd7 {[%emt 0:00:09]} 6. Be2 {[%emt 0:00:06]} Bd6 {[%emt 0:00:54]} 7. O-O {[%emt 0:00:14]} O-O {[%emt 0:00:24]} 8. b3 {[%emt 0:00:07]} Qe7 {[%emt 0:01:15]} 9. Bb2 {[%emt 0:00:11]} b6 {[%emt 0:06:33]} 10. Bd3 {[%emt 0:00:54]} Bb7 {[%emt 0:06:14]} 11. Re1 {[%emt 0:00:41]} Rfd8 {[%emt 0:05:15]} 12. Rc1 {[%emt 0:12:55]} Bb4 {[%emt 0:03:50]} 13. Re2 {[%emt 0:12:15]} dxc4 {[%emt 0:04:25]} 14. bxc4 {[%emt 0:00:57]} c5 {[%emt 0:07:52]} 15. d5 {[%emt 0:14:57]} Bxc3 {[%emt 0:12:59]} 16. d6 {[%emt 0:00:49]} Qf8 {[%emt 0:02:23]} 17. Bxc3 {[%emt 0:00:16]} Ne4 {[%emt 0:21:52]} 18. Bxe4 {[%emt 0:00:52]} Bxe4 {[%emt 0:00:08]} 19. Ng5 {[%emt 0:06:32]} Bg6 {[%emt 0:00:37]} 20. Rd2 {[%emt 0:07:39]} Nf6 {[%emt 0:04:16]} 21. Qf3 {[%emt 0:07:03]} Rd7 {[%emt 0:03:21]} 22. e4 {[%emt 0:16:36]} Rad8 {[%emt 0:05:02]} 23. e5 {[%emt 0:00:59]} Ne8 {[%emt 0:00:05]} 24. a4 {[%emt 0:03:42]} h6 {[%emt 0:01:03]} 25. Nh3 {[%emt 0:00:34]} f6 {[%emt 0:01:29]} 26. Nf4 {[%emt 0:02:04]} Bf5 {[%emt 0:02:08]} 27. g4 {[%emt 0:06:08]} fxe5 {[%emt 0:00:06]} 28. Bxe5 {[%emt 0:00:07]} g5 {[%emt 0:02:45]} 29. Nd5 {[%emt 0:06:46]} exd5 {[%emt 0:01:51]} 30. Qxd5+ {[%emt 0:00:02]} Kh7 {[%emt 0:01:47]} 31. gxf5 {[%emt 0:00:01]} Qxf5 {[%emt 0:01:38]} 32. Rcd1 {[%emt 0:00:08]} Nf6 {[%emt 0:02:45]} 33. Bxf6 {[%emt 0:00:45]} Qxf6 {[%emt 0:00:05]} 34. Qe4+ {[%emt 0:01:22]} Kg7 {[%emt 0:00:40]} 35. Qc6 {[%emt 0:00:08]} Qf4 {[%emt 0:00:44]} 36. a5 {[%emt 0:01:09]} Qxc4 {[%emt 0:02:03]} 37. Re1 {[%emt 0:00:19]} Qg4+ {[%emt 0:00:08]} 38. Kh1 {[%emt 0:00:10]} Rf7 {[%emt 0:00:37]} 39. axb6 {[%emt 0:00:12]} axb6 {[%emt 0:00:09]} 40. Re3 {[%emt 0:01:03]} Qb4 {[%emt 0:00:57]} 41. Qd5 {[%emt 0:09:08]} Qf4 {[%emt 0:04:29]} 42. Qc6 {[%emt 0:00:46]} Rfd7 {[%emt 0:10:52]} 43. Red3 {[%emt 0:08:39]} Qe5 {[%emt 0:06:42]} 44. Qxb6 {[%emt 0:02:40]} Qe4+ {[%emt 0:05:07]} 45. f3 {[%emt 0:00:24]} Qe1+ {[%emt 0:00:07]} 46. Kg2 {[%emt 0:00:01]} Re8 {[%emt 0:02:01]} 47. Qb2+ {[%emt 0:01:30]} Kg8 {[%emt 0:01:32]} 48. Qc2 {[%emt 0:02:38]} Re6 {[%emt 0:02:01]} 49. Qc4 {[%emt 0:03:56]} Kg7 {[%emt 0:01:24]} 50. Rd5 {[%emt 0:02:34]} Qe3 {[%emt 0:00:11]} 51. Qa4 {[%emt 0:01:28]} Rf7 {[%emt 0:00:36]} 52. Rf2 {[%emt 0:01:32]} Ref6 {[%emt 0:00:53]} 53. Qg4 {[%emt 0:01:22]} Rf4 {[%emt 0:00:18]} 54. Qg3 {[%emt 0:00:36]} Qe6 {[%emt 0:00:29]} 55. Rdd2 {[%emt 0:00:28]} c4 {[%emt 0:00:34]} 56. Rfe2 {[%emt 0:00:23]} Qf5 {[%emt 0:00:53]} 57. Re3 {[%emt 0:00:26]} Kh7 {[%emt 0:00:58]} 58. h3 {[%emt 0:00:12]} Qc5 {[%emt 0:00:38]} 59. Rc3 {[%emt 0:01:04]} Rd4 {[%emt 0:00:24]} 60. Qf2 {[%emt 0:00:28]} Rxd2 {[%emt 0:00:23]} 61. Qxd2 {[%emt 0:00:02]} Qf5 {[%emt 0:00:22]} 62. Qd4 {[%emt 0:00:23]} Qf4 {[%emt 0:00:51]} 63. Qd5 {[%emt 0:00:36]} Rd7 {[%emt 0:00:34]} 64. Rxc4 {[%emt 0:00:55]} Qxd6 {[%emt 0:00:05]} 65. Qe4+ {[%emt 0:00:32]} Kg7 {[%emt 0:00:39]} 66. Rc6 {[%emt 0:00:11]} Qd2+ {[%emt 0:00:41]} 67. Kg3 {[%emt 0:00:01]} Qd3 {[%emt 0:00:28]} 68. Rg6+ {[%emt 0:00:52]} Kf8 {[%emt 0:00:25]} 69. Rf6+ {[%emt 0:00:34]} Kg7 {[%emt 0:00:20]} 70. Rg6+ {[%emt 0:00:06]} Kf8 {[%emt 0:00:05]} 71. Qe6 {[%emt 0:01:20]} Rf7 {[%emt 0:00:40]} 72. Qc8+ {[%emt 0:00:12]} 1-0

[Event "FIDE World Junior U20-ch Girls 2025"]
[Site "Petrovac"]
[Date "2025.02.28"]
[Round "3.15"]
[White "Karimova, Guldona"]
[Black "Mikheeva, Galina"]
[Result "1/2-1/2"]
[Annotator "ChessBase"]
[ECO "C45"]
[WhiteElo "2200"]
[BlackElo "2238"]
[PlyCount "91"]
[EventDate "2025.02.23"]
[EventType "swiss"]
[EventCountry "MNE"]
[SourceTitle "playchess.com"]
[Source "ChessBase"]
[SourceQuality "1"]
[TimeControl "40/5400+30:1800+30"]

1. e4 {[%emt 0:00:06]} e5 {[%emt 0:00:04]} 2. Nf3 {[%emt 0:00:05]} Nc6 {[%emt 0:00:06]} 3. d4 {[%emt 0:00:05]} exd4 {[%emt 0:00:27]} 4. Nxd4 {[%emt 0:00:03]} Nf6 {[%emt 0:00:17]} 5. Nxc6 {[%emt 0:00:14]} bxc6 {[%emt 0:00:12]} 6. e5 {[%emt 0:00:04]} Qe7 {[%emt 0:00:11]} 7. Qe2 {[%emt 0:00:03]} Nd5 {[%emt 0:00:13]} 8. h4 {[%emt 0:00:14]} d6 {[%emt 0:09:27]} 9. c4 {[%emt 0:01:37]} Nb6 {[%emt 0:00:49]} 10. exd6 {[%emt 0:00:25]} cxd6 {[%emt 0:05:53]} 11. Be3 {[%emt 0:01:46]} Be6 {[%emt 0:01:00]} 12. Qc2 {[%emt 0:00:35]} f5 {[%emt 0:29:16]} 13. Bg5 {[%emt 0:15:42]} Qf7 {[%emt 0:08:47]} 14. Nd2 {[%emt 0:00:39]} h6 {[%emt 0:04:09]} 15. Bf4 {[%emt 0:01:22]} Be7 {[%emt 0:02:01]} 16. Be2 {[%emt 0:07:20]} O-O {[%emt 0:02:16]} 17. h5 {[%emt 0:00:52]} d5 {[%emt 0:04:48]} 18. c5 {[%emt 0:04:20]} Nd7 {[%emt 0:05:43]} 19. Nb3 {[%emt 0:00:45]} a5 {[%emt 0:06:30]} 20. a4 {[%emt 0:00:16]} Rfe8 {[%emt 0:07:09]} 21. Kf1 {[%emt 0:04:04]} Bf6 {[%emt 0:03:04]} 22. Rd1 {[%emt 0:04:45]} Ra7 {[%emt 0:00:57]} 23. Nd4 {[%emt 0:01:53]} Rb7 {[%emt 0:00:38]} 24. b3 {[%emt 0:06:43]} Rb4 {[%emt 0:01:23]} 25. Nxe6 {[%emt 0:20:24]} Qxe6 {[%emt 0:00:06]} 26. Bc7 {[%emt 0:00:02]} Re4 {[%emt 0:01:25]} 27. Re1 {[%emt 0:00:30]} Nxc5 {[%emt 0:01:42]} 28. Rh3 {[%emt 0:03:13]} Nb7 {[%emt 0:03:09]} 29. Rd3 {[%emt 0:04:31]} Kh8 {[%emt 0:01:30]} 30. g3 {[%emt 0:02:50]} c5 {[%emt 0:01:43]} 31. Qd2 {[%emt 0:01:02]} c4 {[%emt 0:00:32]} 32. bxc4 {[%emt 0:08:30]} dxc4 {[%emt 0:00:02]} 33. Re3 {[%emt 0:00:31]} c3 {[%emt 0:00:23]} 34. Qc2 {[%emt 0:00:15]} Rxe3 {[%emt 0:00:39]} 35. fxe3 {[%emt 0:00:01]} Qxe3 {[%emt 0:00:52]} 36. Bf4 {[%emt 0:00:01]} Qe6 {[%emt 0:00:34]} 37. Rd1 {[%emt 0:01:13]} Qc6 {[%emt 0:00:23]} 38. Kg1 {[%emt 0:00:42]} Bd4+ {[%emt 0:00:32]} 39. Rxd4 {[%emt 0:00:58]} Qc5 {[%emt 0:00:17]} 40. Qd3 {[%emt 0:01:34]} c2 {[%emt 0:00:45]} 41. Kg2 {[%emt 0:32:11]} Rxe2+ {[%emt 0:14:10]} 42. Qxe2 {[%emt 0:00:00]} Qxd4 {[%emt 0:00:05]} 43. Qe8+ {[%emt 0:00:00]} Kh7 {[%emt 0:00:09]} 44. Qg6+ {[%emt 0:00:00]} Kg8 {[%emt 0:04:20]} 45. Qe6+ {[%emt 0:00:00]} Kh8 {[%emt 0:00:57]} 46. Qe8+ {[%emt 0:00:00]} 1/2-1/2